bitfinex-derivatives/quotes_BNBF0:USTF0_20251225
["timestamp","ask_amount","ask_price","bid_price","bid_amount"]
[1766628186486,1.17864405,847.23,846.27,0.88456094]
[1766628187184,1.17864405,847.24,846.27,0.88456094]
[1766628187389,1.17864405,847.23,846.27,0.88456094]
[1766628189387,1.17864405,847.23,846.28,0.88456094]
[1766628194195,1.17864405,847.23,846.27,0.88456094]
[1766628194392,1.17864405,847.24,846.28,0.88456094]
[1766628194693,1.17864405,847.24,845.42,0.01036532]
[1766628194694,1.17864405,847.29,846.34,0.88456094]
[1766628194897,1.17864405,847.3,846.34,0.88456094]
[1766628195197,1.17864405,847.33,846.36,0.88456094]
[1766628196099,1.17864405,847.38,846.4,0.88456094]
[1766628196795,0.20530186,847.79,845.55,0.01252011]
[1766628196796,1.17864405,847.41,846.43,0.88456094]
[1766628197199,1.17864405,847.41,846.28,1.17941458]
[1766628197200,1.17864405,847.41,846.42,0.88456094]
[1766628198196,1.17864405,847.42,846.41,0.88456094]
[1766628200201,1.17864405,847.43,846.4,0.88456094]
[1766628200399,1.17864405,847.43,846.25,1.17941458]
[1766628200400,1.17864405,847.41,846.39,0.88456094]
[1766628201201,1.17864405,847.42,846.39,0.88456094]
[1766628202203,1.17864405,847.42,846.38,0.88456094]
[1766628207305,1.17864405,847.43,846.38,0.88456094]
[1766628212410,1.17864405,847.42,846.38,0.88456094]
[1766628213413,1.17864405,847.42,846.39,0.88456094]
[1766628214012,0.20546247,847.17,846.39,0.88456094]
[1766628216413,0.20546247,847.17,846.4,0.88456094]
[1766628219214,0.20546247,847.17,846.43,0.88456094]
[1766628219417,0.20546247,847.17,846.5,0.88439747]
[1766628220216,0.20546247,847.17,846.49,0.88439747]
[1766628220416,0.20546247,847.17,846.5,0.88439747]
[1766628221213,0.20546247,847.17,846.49,0.88439747]
[1766628221614,0.20546247,847.17,846.53,0.88439747]
[1766628221917,0.20546247,847.17,846.55,0.88439747]
[1766628222114,0.20546247,847.17,846.54,0.88439747]
[1766628222615,0.20546247,847.17,846.55,0.88439747]
[1766628223117,0.20546247,847.17,846.54,0.88439747]
[1766628223918,0.20546247,847.17,846.39,1.17919663]
[1766628224216,0.20546247,847.17,846.24,1.76879495]
[1766628224417,0.20546247,847.17,845.7,0.01307491]
[1766628224718,0.20546247,847.17,845.63,2.94853647]
[1766628224915,0.20546247,847.17,845.32,4.12795105]
[1766628225118,0.20546247,847.17,844.85,5.91008567]
[1766628225317,0.20546247,847.17,844.85,5.89707294]
[1766628225919,0.20546247,847.17,844.01,0.01368659]
[1766628226220,0.20546247,847.17,846.54,0.88413502]
[1766628226617,0.20546247,847.17,846.39,1.17884669]
[1766628227221,0.20546247,847.17,845.69,0.01387197]
[1766628227416,0.20546247,847.17,845.63,2.94711673]
[1766628227721,0.20546247,847.17,844.84,0.01450758]
[1766628227917,0.20546247,847.17,844.0,0.01301668]
[1766628237331,0.20546247,847.17,846.49,0.88426264]
[1766628239134,0.20546247,847.17,846.5,0.88426264]
[1766628246239,0.20546247,847.17,846.46,0.88426264]
[1766628254248,0.20546247,847.17,846.47,0.88426264]
[1766628261756,0.20546247,847.17,846.44,0.88426264]
[1766628263958,0.20546247,847.17,846.45,0.88426264]
[1766628265161,0.20546247,847.17,846.44,0.88426264]
[1766628267158,0.20546247,847.17,846.45,0.88426264]
[1766628275169,0.20546247,847.17,846.15,1.76852528]
[1766628275170,0.20546247,847.17,846.46,0.88426264]
[1766628277168,0.20546247,847.17,846.47,0.88426264]
[1766628278168,0.20546247,847.17,846.48,0.88426264]
[1766628288780,0.20546247,847.17,846.17,1.76852528]
[1766628288781,0.20546247,847.17,846.47,0.88426264]
[1766628289083,0.20546247,847.17,846.46,0.88426264]
[1766628289279,0.20546247,847.17,846.3,1.17901685]
[1766628289280,0.20546247,847.17,846.41,0.88426264]
[1766628290081,0.20546247,847.17,846.46,0.88426264]
[1766628290385,0.20546247,847.17,846.45,0.88426264]
[1766628294285,0.20546247,847.17,846.44,0.88426264]
[1766628298789,0.20546247,847.17,846.43,0.88426264]
[1766628299394,0.20546247,847.17,846.36,0.88426264]
[1766628300293,0.20546247,847.17,846.35,0.88426264]
[1766628301394,0.20546247,847.17,846.34,0.88426264]
[1766628302895,0.20546247,847.17,846.35,0.88426264]
[1766628306797,0.88435207,847.13,846.35,0.88426264]
[1766628309301,0.88435207,847.13,846.34,0.88426264]
[1766628310498,0.88435207,847.14,846.34,0.88426264]
[1766628316705,0.88435207,847.12,846.33,0.88426264]
[1766628319809,0.88435207,847.11,846.32,0.88426264]
[1766628320103,0.88435207,847.06,846.27,0.88426264]
[1766628320306,0.88435207,847.06,846.26,0.88426264]
[1766628321407,0.88435207,847.07,846.27,0.88426264]
[1766628322304,0.88435207,847.07,846.26,0.88426264]
[1766628331111,0.88435207,847.07,846.27,0.88426264]
[1766628333113,0.88435207,847.06,846.27,0.88426264]
[1766628336714,0.88435207,847.05,846.26,0.88426264]
[1766628343110,0.88435207,847.05,846.27,0.88426264]
[1766628353213,0.88435207,847.04,846.27,0.88426264]
[1766628355220,0.88435207,847.04,846.28,0.88426264]
[1766628358222,0.88435207,847.03,846.28,0.88426264]
[1766628359426,0.88435207,847.03,846.29,0.88426264]
[1766628361226,0.88435207,847.02,846.29,0.88426264]
[1766628362224,0.88435207,847.02,846.3,0.88426264]
[1766628364227,0.88435207,847.0,846.31,0.88426264]
[1766628366832,0.88435207,847.01,846.31,0.88426264]
[1766628396153,0.88435207,847.05,846.35,0.88426264]
[1766628398149,0.88435207,847.06,846.34,0.88426264]
[1766628403562,0.88435207,847.0,846.27,0.88426264]
[1766628412163,0.88435207,847.0,846.26,0.88426264]
[1766628412467,0.88435207,847.01,846.26,0.88426264]
[1766628414266,0.20551343,846.83,846.26,0.88426264]
[1766628420672,0.20551343,846.83,846.11,1.17901685]
[1766628420870,0.20551343,846.83,846.26,0.88594909]
[1766628435186,0.20551343,846.83,846.27,0.88594909]
[1766628441196,0.20551343,846.83,846.28,0.88594909]
[1766628470825,0.20551343,846.83,846.27,0.88594909]
[1766628471121,0.20551343,846.83,846.22,0.88594909]
[1766628471321,0.20551343,846.83,846.26,0.88594909]
[1766628472125,0.20551343,846.83,846.25,0.88594909]
[1766628476122,0.20551343,846.83,846.24,0.88594909]
[1766628484231,0.20551343,846.83,846.23,0.88594909]
[1766628486835,0.20551343,846.83,846.24,0.88594909]
[1766628491338,0.20551343,846.83,846.23,0.88594909]
[1766628496146,0.20551343,846.83,846.24,0.88594909]
[1766628507855,0.20551343,846.83,846.24,0.88588545]
[1766628509158,0.20551343,846.83,846.25,0.88588545]
[1766628513253,0.20551343,846.83,846.26,0.88588545]
[1766628514362,0.20551343,846.83,845.41,0.00970541]
[1766628514363,0.20551343,846.83,846.18,0.88588545]
[1766628515462,0.20551343,846.83,846.22,0.88588545]
[1766628517258,0.20551343,846.83,846.21,0.88588545]
[1766628521162,0.20551343,846.83,846.2,0.88588545]
[1766628529373,0.20551343,846.83,846.04,1.17901685]
[1766628529574,0.20551343,846.83,846.2,0.88553834]
[1766628530275,0.20551343,846.83,846.19,0.88553834]
[1766628534380,0.20551343,846.83,846.25,0.88553834]
[1766628545085,0.20551343,846.83,846.26,0.88553834]
[1766628545281,0.20551343,846.83,845.4,0.01072972]
[1766628545282,0.20551343,846.83,846.31,0.88553834]
[1766628545584,0.20551343,846.83,845.35,2.94754214]
[1766628545585,0.20551343,846.83,846.34,0.88553834]
[1766628546885,0.20551343,846.83,846.35,0.88553834]
[1766628547185,0.20551343,846.83,846.34,0.88553834]
[1766628550185,0.20551343,846.83,846.33,0.88553834]
[1766628554190,0.20551343,846.83,846.32,0.88553834]
[1766628559193,0.20551343,846.83,846.31,0.88553834]
[1766628570206,0.20551343,846.83,846.32,0.88553834]
[1766628575217,0.20551343,846.83,846.33,0.88553834]
[1766628576718,0.20551343,846.83,846.29,0.88553834]
[1766628577216,0.20551343,846.83,846.3,0.88553834]
[1766628579218,0.20551343,846.83,846.31,0.88553834]
[1766628583018,0.20551343,846.83,846.3,0.88553834]
[1766628583218,0.20551343,846.83,846.15,1.17901685]
[1766628583219,0.20551343,846.83,846.31,0.88553834]
[1766628588731,0.20551343,846.83,846.28,0.88553834]
[1766628591226,0.20551343,846.83,846.27,0.88553834]
[1766628597136,0.20551343,846.83,846.26,0.88553834]
[1766628609939,0.20551343,846.83,846.26,0.88551088]
[1766628614350,1.17743144,847.19,846.26,0.88551088]
[1766628614548,0.20550615,846.73,846.26,0.88551088]
[1766628614847,1.17743144,847.19,846.26,0.88551088]
[1766628615145,0.20550615,846.73,846.26,0.88551088]
[1766628615350,1.17743144,847.18,846.26,0.88551088]
[1766628615851,0.20550615,846.73,846.26,0.88551088]
[1766628616051,1.17743144,847.18,846.26,0.88551088]
[1766628616352,0.20550675,846.73,846.27,0.88551088]
[1766628616547,1.17743144,847.18,846.27,0.88551088]
[1766628616747,0.20550615,846.73,846.27,0.88551088]
[1766628616948,1.17743144,847.18,846.27,0.88551088]
[1766628617151,0.20550615,846.73,846.27,0.88551088]
[1766628617552,1.17743144,847.18,846.27,0.88551088]
[1766628617752,0.20550615,846.73,846.27,0.88551088]
[1766628617949,1.17743144,847.18,846.27,0.88551088]
[1766628618249,0.20550615,846.73,846.27,0.88551088]
[1766628618452,1.17743144,847.18,846.27,0.88551088]
[1766628618650,0.20550615,846.73,846.27,0.88551088]
[1766628619052,1.17743144,847.18,846.27,0.88551088]
[1766628619348,0.20550615,846.73,846.27,0.88551088]
[1766628619553,1.17743144,847.18,846.27,0.88551088]
[1766628620150,1.17743144,847.17,846.28,0.88551088]
[1766628620652,0.20550615,846.95,846.28,0.88551088]
[1766628627161,0.20550615,846.95,846.29,0.88551088]
[1766628630970,0.20550615,846.95,846.28,0.88551088]
[1766628637474,0.20550615,846.95,846.26,0.88551088]
[1766628642681,0.20550615,846.95,846.09,0.88551088]
[1766628642977,0.20550615,846.95,845.17,2.94754214]
[1766628642978,1.38293759,846.95,846.08,0.88551088]
[1766628643176,1.17743144,846.93,846.06,0.88551088]
[1766628643379,0.20550615,846.95,846.03,0.88551088]
[1766628644278,0.20550615,846.95,846.02,0.88551088]
[1766628645282,0.20550615,846.95,846.01,0.88551088]
[1766628646377,0.20550615,846.95,846.0,0.88551088]
[1766628647278,0.20550615,846.95,845.99,0.88551088]
[1766628648184,0.20550615,846.95,845.98,0.88551088]
[1766628650280,0.20550615,846.95,845.97,0.88551088]
[1766628653286,0.20550615,846.95,845.96,0.88551088]
[1766628656189,0.20550615,846.95,845.95,0.88551088]
[1766628663798,0.20550615,846.95,845.97,0.88551088]
[1766628665997,0.20550615,846.95,846.01,0.88551088]
[1766628667601,0.20550615,846.95,846.02,0.88551088]
[1766628667795,0.20550615,846.95,846.03,0.88551088]
[1766628668395,0.20550615,846.95,846.05,0.88551088]
[1766628669200,0.20550615,846.95,846.07,0.88551088]
[1766628670200,0.20550615,846.95,846.1,0.88551088]
[1766628670396,0.20550615,846.95,846.12,0.88551088]
[1766628672703,0.20550615,846.95,846.14,0.88551088]
[1766628694324,0.20550615,846.95,846.15,0.88551088]
[1766628698224,0.20550615,846.95,846.16,0.88551088]
[1766628701333,0.20550615,846.95,846.17,0.88551088]
[1766628702733,0.20550615,846.95,846.2,0.88551088]
[1766628704234,0.20550615,846.95,846.21,0.88551088]
[1766628707238,0.20550615,846.95,846.22,0.88551088]
[1766628708339,0.20550615,846.95,846.23,0.88551088]
[1766628710338,0.20550615,846.95,846.24,0.88551088]
[1766628711239,0.20550615,846.95,846.25,0.88551088]
[1766628713345,0.20550615,846.95,846.26,0.88551088]
[1766628716152,0.20550615,846.95,846.27,0.88551088]
[1766628722757,0.20550615,846.95,846.29,0.88551088]
[1766628723455,0.20550615,846.95,846.28,0.88551088]
[1766628728564,0.20550615,846.95,846.35,0.88551088]
[1766628730465,0.20550615,846.95,846.34,0.88551088]
[1766628732462,0.20550615,846.95,846.33,0.88551088]
[1766628737368,0.20550615,846.95,846.32,0.88551088]
[1766628744173,0.20550615,846.95,846.32,0.88551088]
[1766628755284,0.20550615,846.95,846.33,0.88551088]
[1766628755887,0.20550615,846.95,846.38,0.88551088]
[1766628756086,0.20550615,846.95,846.4,0.88551088]
[1766628756285,0.20550615,846.95,846.43,0.88551088]
[1766628757490,0.20550615,846.95,846.42,0.88551088]
[1766628758290,0.20550615,846.95,846.43,0.88551088]
[1766628758489,0.20550615,846.95,846.42,0.88551088]
[1766628761493,0.20550615,846.95,846.41,0.88551088]
[1766628762293,0.20550615,846.95,846.42,0.88551088]
[1766628762494,0.20550615,846.95,846.41,0.88551088]
[1766628770500,1.17743144,847.52,846.54,0.88551088]
[1766628770700,0.20543942,847.14,846.56,0.88551088]
[1766628770909,0.20543942,847.14,846.57,0.88551088]
[1766628771099,1.17743144,847.56,846.57,0.88551088]
[1766628771300,1.76614716,847.71,845.71,0.01229955]
[1766628771301,0.20541699,847.17,846.56,0.88551088]
[1766628771500,1.17743144,847.57,846.56,0.88551088]
[1766628771804,0.20541638,847.17,846.56,0.88551088]
[1766628772100,1.17743144,847.57,846.56,0.88551088]
[1766628772304,0.20541638,847.17,846.56,0.88551088]
[1766628772601,1.17743144,847.58,846.56,0.88551088]
[1766628772906,0.20541638,847.17,846.56,0.88551088]
[1766628773199,1.17743144,847.58,846.56,0.88551088]
[1766628773404,0.20541578,847.17,846.55,0.88551088]
[1766628773707,1.17743144,847.58,846.55,0.88551088]
[1766628773908,0.20541638,847.17,846.55,0.88551088]
[1766628774106,1.17743144,847.58,846.55,0.88551088]
[1766628774308,0.20541881,847.15,846.54,0.88551088]
[1766628774613,1.17743144,847.59,846.54,0.88551088]
[1766628775406,1.17743144,847.6,846.53,0.88551088]
[1766628775805,0.20541881,847.34,846.53,0.88551088]
[1766628777305,0.20541881,847.34,846.52,0.88551088]
[1766628780017,0.20541881,847.34,846.44,0.88551088]
[1766628784119,0.20541881,847.34,846.39,0.88551088]
[1766628784316,0.20541881,847.34,846.36,0.88551088]
[1766628785614,0.20541881,847.34,846.32,0.88551088]
[1766628787918,0.20541881,847.34,846.27,0.88551088]
[1766628794732,1.17743144,847.27,846.19,0.88551088]
[1766628795129,0.20541881,847.34,846.19,0.88551088]
[1766628795130,1.17743144,847.28,846.19,0.88551088]
[1766628795337,1.17743144,847.27,846.19,0.88551088]
[1766628796232,1.17743144,847.28,846.18,0.88551088]
[1766628799133,1.17743144,847.29,846.18,0.88551088]
[1766628800137,1.17743144,847.29,846.17,0.88551088]
[1766628800433,1.17743144,847.28,846.16,0.88551088]
[1766628802240,1.17743144,847.29,846.16,0.88551088]
[1766628803243,1.17743144,847.29,846.15,0.88551088]
[1766628803943,1.17743144,847.25,846.11,0.88551088]
[1766628804244,1.17743144,847.25,846.1,0.88551088]
[1766628805345,1.17743144,847.26,846.09,0.88551088]
[1766628807348,1.17743144,847.27,846.09,0.88551088]
[1766628808143,1.17743144,847.27,846.08,0.88551088]
[1766628808549,1.17743144,847.24,846.05,0.88551088]
[1766628809451,0.20541881,847.34,846.05,0.88551088]
[1766628809452,1.17743144,847.25,846.05,0.88551088]
[1766628809852,1.17743144,847.24,846.04,0.88551088]
[1766628810049,1.17743144,847.17,845.97,0.88551088]
[1766628810352,1.17743144,847.18,845.96,0.88551088]
[1766628811454,1.17743144,847.19,845.96,0.88551088]
[1766628812251,1.17743144,847.19,845.95,0.88551088]
[1766628812452,1.17743144,847.18,845.94,0.88551088]
[1766628812654,1.17743144,847.12,845.88,0.88551088]
[1766628813454,1.17743144,847.13,845.87,0.88551088]
[1766628813753,1.17743144,847.06,845.8,0.88551088]
[1766628814252,1.17743144,847.07,845.79,0.88551088]
[1766628814447,1.76614716,847.23,845.79,0.88551088]
[1766628814448,1.17743144,847.08,845.79,0.88551088]
[1766628815154,1.17743144,847.09,845.78,0.88551088]
[1766628816151,1.17743144,847.1,845.77,0.88093104]
[1766628816353,1.17743144,847.09,845.77,0.88093104]
[1766628816753,1.76614716,847.24,845.76,0.88093104]
[1766628816754,1.17743144,847.08,845.76,0.88093104]
[1766628817050,1.17743144,847.09,845.77,0.88093104]
[1766628817249,1.17743144,847.09,845.76,0.88093104]
[1766628818252,1.17743144,847.1,845.76,0.88093104]
[1766628818457,1.17743144,847.09,845.76,0.88093104]
[1766628819159,1.17743144,847.1,845.75,0.88093104]
[1766628819359,1.17743144,847.09,845.76,0.88093104]
[1766628820159,1.17743144,847.1,845.75,0.88093104]
[1766628820357,1.17743144,847.09,845.76,0.88093104]
[1766628821261,1.17743144,847.1,845.76,0.88093104]
[1766628821456,1.17743144,847.09,845.76,0.88093104]
[1766628823358,1.17743144,847.08,845.77,0.88093104]
[1766628824162,1.17743144,847.09,845.77,0.88093104]
[1766628824462,1.17743144,847.08,845.78,0.88093104]
[1766628825162,1.17743144,847.08,845.77,0.88093104]
[1766628826262,1.17743144,847.07,845.78,0.88093104]
[1766628828266,1.17743144,847.06,845.79,0.88093104]
[1766628830262,1.17743144,847.05,845.8,0.88093104]
[1766628832264,1.17743144,847.05,845.81,0.88093104]
[1766628833270,1.17743144,847.04,845.81,0.88093104]
[1766628836273,1.17743144,847.03,845.82,0.88093104]
[1766628838180,1.17743144,847.02,845.83,0.88093104]
[1766628839171,1.17743144,847.02,845.84,0.88093104]
[1766628840277,1.17743144,847.01,845.84,0.88093104]
[1766628842180,1.17743144,847.0,845.85,0.88093104]
[1766628844279,1.17743144,846.99,845.86,0.88093104]
[1766628846180,1.17743144,846.98,845.87,0.88093104]
[1766628847181,1.17743144,846.97,845.88,0.88093104]
[1766628848181,0.20541881,847.34,845.89,0.88093104]
[1766628848182,1.17743144,846.96,845.89,0.88093104]
[1766628849287,1.17743144,846.95,845.9,0.88093104]
[1766628849479,1.17743144,846.96,845.9,0.88093104]
[1766628850183,1.17743144,846.95,845.9,0.88093104]
[1766628851184,1.17743144,846.94,845.91,0.88093104]
[1766628852282,1.17743144,846.93,845.93,0.88093104]
[1766628853284,1.17743144,846.91,845.94,0.88093104]
[1766628854287,1.17743144,846.9,845.95,0.88093104]
[1766628855185,1.17743144,846.89,845.96,0.88093104]
[1766628856183,0.20541881,847.34,845.11,0.01403384]
[1766628856184,1.17743144,846.88,845.97,0.88093104]
[1766628857189,1.17743144,846.86,845.99,0.88093104]
[1766628858289,1.17743144,846.85,846.0,0.88093104]
[1766628874197,1.17743144,846.87,846.02,0.88093104]
[1766628875197,1.17743144,846.93,846.06,0.88093104]
[1766628875398,1.17743144,846.94,846.07,0.88093104]
[1766628875898,1.17743144,847.0,846.13,0.88093104]
[1766628876395,1.17743144,847.03,846.13,0.88093104]
[1766628877298,1.17743144,847.04,846.12,0.88093104]
[1766628877897,1.17743144,847.04,845.96,1.17901685]
[1766628877898,1.17743144,847.09,846.16,0.88093104]
[1766628878300,1.17743144,847.1,846.15,0.88093104]
[1766628879198,1.17743144,847.11,846.14,0.88093104]
[1766628880299,1.17743144,847.12,846.13,0.88093104]
[1766628880495,1.17743144,847.14,846.13,0.88093104]
[1766628880697,1.17743144,847.14,846.15,0.88093104]
[1766628881202,1.17743144,847.15,846.14,0.88093104]
[1766628881498,1.17743144,847.19,846.18,0.88093104]
[1766628882203,1.17743144,847.2,846.17,0.88093104]
[1766628882603,1.17743144,847.19,846.16,0.88093104]
[1766628883197,1.17743144,847.2,846.15,0.88093104]
[1766628884203,1.17743144,847.2,846.14,0.88093104]
[1766628885202,1.17743144,847.21,846.14,0.88093104]
[1766628885402,1.17743144,847.2,846.13,0.88093104]
[1766628885699,1.17743144,847.18,846.11,0.88093104]
[1766628886300,1.17743144,847.08,846.0,0.88093104]
[1766628897106,1.17743144,847.08,846.01,0.88093104]
[1766628901717,1.17743144,847.09,846.02,0.88093104]
[1766628903317,1.17743144,847.09,846.03,0.88093104]
[1766628905321,1.17743144,847.08,846.03,0.88093104]
[1766628907222,1.17743144,847.09,846.04,0.88093104]
[1766628907426,1.17743144,847.08,846.04,0.88093104]
[1766628911327,1.17743144,847.08,846.05,0.88093104]
[1766628912228,1.17743144,847.07,846.05,0.88093104]
[1766628912837,1.17743144,847.06,846.04,0.88093104]
[1766628913426,1.17743144,847.06,846.05,0.88093104]
[1766628915226,1.17743144,847.05,846.05,0.88093104]
[1766628916231,1.17743144,847.05,846.06,0.88093104]
[1766628917426,1.17743144,847.04,846.06,0.88093104]
[1766628918126,1.17743144,847.04,846.07,0.88093104]
[1766628919131,1.17743144,847.03,846.07,0.88093104]
[1766628923433,1.17743144,847.03,846.08,0.88093104]
[1766628927134,1.17743144,847.02,846.09,0.88093104]
[1766628928538,1.17743144,847.01,846.09,0.88093104]
[1766628929239,1.17743144,847.01,846.1,0.88093104]
[1766628930240,1.17743144,847.0,846.11,0.88093104]
[1766628931239,1.17743144,846.98,846.12,0.88093104]
[1766628933040,1.17743144,846.97,846.11,0.88093104]
[1766628938342,1.17743144,846.97,846.1,0.88093104]
[1766628943245,1.17743144,846.99,846.12,0.88093104]
[1766628948648,1.17743144,846.97,846.1,0.88093104]
[1766628957357,1.17743144,846.97,846.11,0.88093104]
[1766628961160,1.17743144,846.97,846.1,0.88093104]
[1766628967264,1.17743144,846.97,846.11,0.88093104]
[1766628973771,1.17743144,846.97,845.95,1.17901685]
[1766628973973,1.17743144,846.97,846.11,0.88664076]
[1766628976075,0.20555045,846.76,846.11,0.88664076]
[1766628976479,0.20555045,846.76,846.12,0.88664076]
[1766628978875,0.20555045,846.76,845.27,0.01118597]
[1766628978876,0.20555045,846.76,846.11,0.88664076]
[1766628987586,0.20555045,846.76,846.12,0.88664076]
[1766628995800,0.20555045,846.76,846.18,0.88664076]
[1766628996201,0.20555045,846.76,846.2,0.88664076]
[1766628997095,0.20555045,846.76,846.19,0.88664076]
[1766628999199,0.20555045,846.76,846.18,0.88664076]
[1766628999704,0.20555045,846.76,846.21,0.88664076]
[1766629001100,0.20555045,846.76,846.2,0.88664076]
[1766629004103,0.20555045,846.76,846.19,0.88664076]
[1766629008207,0.20555045,846.76,846.18,0.88664076]
[1766629012411,1.17743144,847.16,846.18,0.88664076]
[1766629022818,0.20551525,846.92,846.18,0.88664076]
[1766629027525,0.20551525,846.92,846.19,0.88664076]
[1766629028022,0.20551525,846.92,846.2,0.88664076]
[1766629028621,0.20551525,846.92,846.21,0.88664076]
[1766629028827,0.20551525,846.92,846.29,0.88664076]
[1766629030326,0.20551525,846.92,846.31,0.88664076]
[1766629031323,0.20551525,846.92,846.3,0.88664076]
[1766629032124,0.20551525,846.92,846.31,0.88664076]
[1766629032328,0.20551525,846.92,846.3,0.88664076]
[1766629033730,0.20551525,846.92,846.29,0.88664076]
[1766629034129,0.20551525,846.92,845.46,0.01295069]
[1766629034130,0.20551525,846.92,846.27,0.88664076]
[1766629045238,0.20551525,846.92,846.12,1.17901685]
[1766629045438,0.20551525,846.92,846.27,0.8847866]
[1766629053644,0.20551525,846.92,845.42,0.01385232]
[1766629053645,0.20551525,846.92,846.24,0.8847866]
[1766629059352,0.20551525,846.92,846.25,0.8847866]
[1766629061656,0.20551525,846.92,846.1,1.17901685]
[1766629061854,0.20551525,846.92,846.25,0.88509115]
[1766629064155,0.20551525,846.92,846.26,0.88509115]
[1766629068361,0.20551525,846.92,846.27,0.88509115]
[1766629071364,0.20551525,846.92,846.28,0.88509115]
[1766629073565,0.20551525,846.92,846.29,0.88509115]
[1766629084071,0.20551525,846.92,846.3,0.88509115]
[1766629089380,0.20551525,846.92,846.34,0.88509115]
[1766629090376,0.20551525,846.92,846.18,1.17901685]
[1766629090377,0.20551525,846.92,846.33,0.88509115]
[1766629094783,0.20551525,846.92,846.32,0.88509115]
[1766629095883,0.20551525,846.92,846.29,0.88509115]
[1766629096682,0.20551525,846.92,846.28,0.88509115]
[1766629096880,0.20551525,846.92,846.24,0.88509115]
[1766629115798,0.20551525,846.92,846.26,0.88509115]
[1766629125211,0.20551525,846.92,846.28,0.88509115]
[1766629130016,0.20551525,846.92,846.29,0.88509115]
[1766629155437,0.20551525,846.92,846.32,0.88509115]
[1766629177552,0.20551525,846.92,846.33,0.88509115]
[1766629190262,0.20551525,846.92,846.34,0.88509115]
[1766629191864,0.20551525,846.92,846.18,1.17901685]
[1766629192361,0.20551525,846.92,846.03,1.76852528]
[1766629192564,0.20551525,846.92,846.34,0.88626477]
[1766629200270,0.20551525,846.92,846.35,0.88626477]
[1766629200769,0.20551525,846.92,846.31,0.88626477]
[1766629201769,0.20551525,846.92,846.36,0.88626477]
[1766629204877,0.20551525,846.92,846.25,0.88626477]
[1766629205274,0.20551525,846.92,846.23,0.88626477]
[1766629206074,0.20551525,846.92,846.22,0.88626477]
[1766629207184,0.20551525,846.92,846.21,0.88626477]
[1766629209379,0.20551525,846.92,846.2,0.88626477]
[1766629210984,0.20551525,846.92,846.19,0.88626477]
[1766629211180,0.20551525,846.92,846.16,0.88626477]
[1766629214286,0.20551525,846.92,846.15,0.88626477]
[1766629215281,0.20551525,846.92,846.06,0.88626477]
[1766629215783,0.20551525,846.92,846.05,0.88626477]
[1766629216184,0.20551525,846.92,846.04,0.88626477]
[1766629217187,0.20551525,846.92,846.03,0.88626477]
[1766629218182,0.20551525,846.92,846.02,0.88626477]
[1766629220289,0.20551525,846.92,846.01,0.88626477]
[1766629222286,0.20551525,846.92,846.0,0.88626477]
[1766629222786,1.18164527,847.08,846.0,0.88626477]
[1766629223088,0.20554681,846.7,846.0,0.88626477]
[1766629223289,1.18164527,847.08,846.0,0.88626477]
[1766629223591,0.20554681,846.58,846.0,0.88626477]
[1766629223791,1.18164527,847.08,846.0,0.88626477]
[1766629224188,1.18164527,847.09,846.0,0.88626477]
[1766629224392,1.18164527,847.09,845.99,0.88626477]
[1766629225090,0.20554681,846.82,845.99,0.88626477]
[1766629228997,0.20554681,846.82,845.95,0.88626477]
[1766629230097,0.20554681,846.82,845.94,0.88626477]
[1766629238302,0.20554681,846.82,845.95,0.88626477]
[1766629242203,0.20554681,846.82,845.96,0.88626477]
[1766629243208,0.20554681,846.82,845.98,0.88626477]
[1766629243409,0.20554681,846.82,845.99,0.88626477]
[1766629246206,0.20554681,846.82,846.0,0.88626477]
[1766629247411,0.20554681,846.82,846.01,0.88626477]
[1766629248406,0.20554681,846.82,846.02,0.88626477]
[1766629249110,0.20554681,846.82,846.03,0.88626477]
[1766629251206,0.20554681,846.82,846.04,0.88626477]
[1766629251710,0.20554681,846.82,846.08,0.88626477]
[1766629251910,0.20554681,846.82,846.09,0.88626477]
[1766629253212,0.20554681,846.82,846.1,0.88626477]
[1766629254010,0.20554681,846.82,846.11,0.88626477]
[1766629254215,0.20554681,846.82,846.12,0.88626477]
[1766629257216,0.20554681,846.82,846.13,0.88626477]
[1766629258113,0.20554681,846.82,846.14,0.88626477]
[1766629264426,0.20554681,846.82,846.13,0.88626477]
[1766629284134,0.20554681,846.82,846.12,0.88626477]
[1766629286139,0.20554681,846.82,846.13,0.88626477]
[1766629290138,0.20554681,846.82,846.14,0.88626477]
[1766629294143,0.20554681,846.82,846.15,0.88626477]
[1766629296140,0.20554681,846.82,846.16,0.88626477]
[1766629296845,0.20554681,846.82,846.12,0.88626477]
[1766629297043,0.20554681,846.82,846.11,0.88626477]
[1766629297246,0.20554681,846.82,846.07,0.88626477]
[1766629297446,0.88604382,846.75,846.02,0.88626477]
[1766629297847,0.88604382,846.74,846.01,0.88626477]
[1766629298349,0.88604382,846.75,846.01,0.88626477]
[1766629299444,0.20554681,846.82,846.0,0.88626477]
[1766629299445,0.88604382,846.76,846.0,0.88626477]
[1766629302049,0.88604382,846.75,845.99,0.88626477]
[1766629309050,0.88604382,846.76,845.99,0.88626477]
[1766629309457,0.88604382,846.76,845.98,0.88626477]
[1766629313357,0.20554681,846.82,845.98,0.88626477]
[1766629313557,0.20554681,846.82,845.82,1.18168637]
[1766629314554,0.20554681,846.82,845.67,1.76852528]
[1766629314953,0.20554681,846.82,845.14,0.01400307]